bitfinex-derivatives/quotes_SOLF0:USTF0_20250105
["timestamp","ask_amount","ask_price","bid_price","bid_amount"]
[1736088398683,38.3504426,213.06,212.92,2.74]
[1736088398887,0.76020965,213.05,212.92,2.74]
[1736088399078,0.76020965,213.05,212.93,2.3487]
[1736088399281,0.76020965,213.05,212.92,2.74]
[1736088399683,0.76020965,213.05,212.94,2.3486]
[1736088399885,0.76020965,213.05,212.92,2.74]
[1736088400082,38.3504426,213.06,212.92,2.74]
[1736088400280,2.74,213.05,212.92,2.74]
[1736088401384,38.3504426,213.06,212.92,2.74]
[1736088401385,4.2438,213.08,212.92,2.74]
[1736088401581,4.2438,213.08,212.93,2.9655]
[1736088401886,1.5038,213.08,212.93,2.9655]
[1736088402089,2.3476,213.03,212.96,2.3483]
[1736088402289,2.3476,213.03,212.93,2.9655]
[1736088402784,2.3476,213.03,212.98,2.3482]
[1736088402981,2.3475,213.05,212.97,2.74]
[1736088403390,2.3475,213.05,213.0,2.3479]
[1736088403586,2.3473,213.06,213.0,2.3479]
[1736088404088,2.3472,213.07,213.01,2.3478]
[1736088404286,2.74,213.11,212.97,2.74]
[1736088404481,0.75999948,213.1,212.97,2.74]
[1736088404690,2.74,213.11,212.97,2.74]
[1736088404889,0.75999483,213.1,212.97,2.74]
[1736088405086,2.3471,213.08,213.02,2.3476]
[1736088405284,2.74,213.11,212.97,2.74]
[1736088405481,1.5271,213.12,212.97,2.74]
[1736088405693,2.347,213.09,213.04,2.3475]
[1736088406085,1.5271,213.12,213.02,2.74]
[1736088406288,129.98797179,213.16,213.02,2.74]
[1736088406488,0.75975175,213.15,213.03,2.9329]
[1736088407090,0.75975175,213.14,213.03,5.6729]
[1736088407291,2.3471,213.08,213.03,5.6729]
[1736088407489,3.49985392,213.13,212.94,1.4292]
[1736088407685,2.21466635,213.12,212.95,5.7035]
[1736088407884,2.3472,213.07,212.96,2.3483]
[1736088408090,16.84,213.06,212.95,2.9635]
[1736088408288,18.3285,213.05,212.95,2.9635]
[1736088408486,2.3477,213.02,212.95,5.312]
[1736088408889,18.3285,213.05,212.95,5.312]
[1736088409587,18.3285,213.05,212.95,2.9635]
[1736088410492,18.3285,213.05,212.95,1.4361]
[1736088411003,2.3481,213.0,212.95,1.4361]
[1736088411495,2.3479,213.01,212.95,1.4361]
[1736088411897,18.3285,213.05,212.95,1.4361]
[1736088412087,2.3481,212.99,212.95,1.4361]
[1736088412490,2.3481,212.99,212.93,2.3486]
[1736088412687,2.3482,212.98,212.91,2.3489]
[1736088412888,1.3826,213.04,212.89,4.2374]
[1736088413088,0.76025574,213.03,212.89,4.2374]
[1736088413295,1.3826,213.04,212.89,4.2374]
[1736088413494,0.76028179,213.03,212.89,4.2374]
[1736088414401,2.3484,212.97,212.91,2.3489]
[1736088414592,2.74,212.99,212.89,4.2374]
[1736088415196,2.3485,212.95,212.9,2.349]
[1736088415395,2.74,212.99,212.9,2.349]
[1736088415795,2.3484,212.96,212.89,4.2374]
[1736088415997,2.74,212.99,212.89,4.2374]
[1736088416398,16.84,212.99,212.89,1.4015]
[1736088416893,2.3484,212.96,212.88,6.42117474]
[1736088417089,16.84,212.99,212.88,6.42117474]
[1736088417696,2.349,212.91,212.88,6.42117474]
[1736088417997,1.5239,213.03,212.88,6.42117474]
[1736088418194,14.1,213.01,212.88,6.42117474]
[1736088418496,17.60043167,213.0,212.88,6.42117474]
[1736088418700,0.76043167,212.99,212.88,6.42117474]
[1736088418891,2.3484,212.96,212.88,6.42117474]
[1736088419094,2.74,212.95,212.88,6.42117474]
[1736088419493,2.3488,212.93,212.88,6.42117474]
[1736088419697,1.5239,213.03,212.88,6.42117474]
[1736088419892,3.50029667,213.02,212.88,6.42117474]
[1736088420099,2.3482,212.98,212.92,2.3488]
[1736088420403,2.74,213.01,212.89,2.74]
[1736088421507,2.3485,212.96,212.9,2.349]
[1736088422392,2.74,213.01,212.89,2.74]
[1736088422998,2.3485,212.95,212.89,5.0892]
[1736088424301,2.3485,212.95,212.9,2.3491]
[1736088424704,2.3485,212.95,212.89,2.74]
[1736088424902,16.84,212.99,212.89,2.74]
[1736088425095,2.3484,212.96,212.91,2.3489]
[1736088427506,14.1,212.99,212.92,2.3488]
[1736088428100,14.1,213.02,212.89,2.74]
[1736088428307,2.74,213.01,212.95,2.3485]
[1736088428495,2.74,213.01,212.89,2.74]
[1736088429404,2.3481,212.99,212.94,2.3486]
[1736088429900,2.3478,213.02,212.96,2.3483]
[1736088430100,5.0878,213.02,212.96,2.3483]
[1736088430406,4.2285,213.05,212.9,2.9238]
[1736088430605,18.3285,213.05,212.91,4.212]
[1736088431007,2.3477,213.02,212.96,2.3483]
[1736088431208,2.3477,213.02,212.91,4.212]
[1736088431609,2.3474,213.06,212.91,4.212]
[1736088432805,2.3474,213.06,213.02,2.3477]
[1736088433307,2.3471,213.08,212.96,2.74]
[1736088434410,2.3471,213.08,213.03,2.3476]
[1736088434603,2.347,213.09,212.96,2.74]
[1736088435005,18.259,213.11,213.03,2.3475]
[1736088435204,2.3471,213.08,213.03,2.3475]
[1736088435606,2.3471,213.08,212.96,2.74]
[1736088435812,2.347,213.09,213.04,2.3474]
[1736088436010,18.259,213.11,212.96,2.74]
[1736088437515,2.3472,213.08,213.03,2.3476]
[1736088437905,18.259,213.11,212.96,2.74]
[1736088438112,2.3472,213.08,212.96,2.74]
[1736088439112,2.3472,213.08,213.03,2.3476]
[1736088439508,2.3474,213.05,213.01,2.3478]
[1736088439807,14.1,213.05,212.93,2.74]
[1736088440010,2.3477,213.02,212.96,2.3483]
[1736088440312,14.1,213.05,212.93,2.74]
[1736088440714,14.1,213.05,212.88,9.16117474]
[1736088440913,14.1,213.03,212.88,9.16117474]
[1736088441307,2.3482,212.98,212.94,2.3486]
[1736088441810,2.3481,212.99,212.94,2.3486]
[1736088442009,16.84,213.0,212.88,9.16117474]
[1736088442411,19.188,213.0,212.88,9.16117474]
[1736088442606,16.84,213.0,212.88,9.16117474]
[1736088442806,16.84,213.0,212.89,2.74]
[1736088443006,2.3482,212.99,212.93,2.3487]
[1736088443214,2.74,213.0,212.93,2.3487]
[1736088443610,2.74,213.0,212.88,6.42117474]
[1736088443815,16.84,213.0,212.88,6.42117474]
[1736088444314,2.3487,212.94,212.88,8.77037474]
[1736088446316,2.3487,212.93,212.88,6.42117474]
[1736088447015,2.3489,212.92,212.88,6.42117474]
[1736088449919,2.74,212.95,212.88,6.42117474]
[1736088450115,2.74,212.95,212.9,2.349]
[1736088450719,5.0886,212.95,212.89,2.3492]
[1736088452915,2.3486,212.95,212.89,2.3492]
[1736088454324,2.74,212.96,212.89,2.3492]
[1736088454620,2.3487,212.94,212.89,2.3492]
[1736088454821,2.74,212.96,212.88,8.77037474]
[1736088455221,25.75408738,212.94,212.81,11.65408738]
[1736088455421,25.75408738,212.94,212.84,2.3497]
[1736088456416,15.5615,212.95,212.84,11.65408738]
[1736088456621,4.2015,212.95,212.84,11.65408738]
[1736088457023,2.3489,212.92,212.87,7.46155325]
[1736088458020,2.3489,212.92,212.87,9.81095325]
[1736088458223,9.81055325,212.91,212.85,7.46155325]
[1736088458426,7.46155325,212.91,212.85,7.46155325]
[1736088459427,7.46155325,212.91,212.87,2.3493]
[1736088459926,9.81055325,212.91,212.87,2.3493]
[1736088460226,2.349,212.91,212.87,2.3493]
[1736088460729,2.349,212.91,212.87,9.81085325]
[1736088461129,1.4615,212.95,212.87,7.46155325]
[1736088461323,7.46155325,212.96,212.91,9.81045325]
[1736088461522,2.74,212.97,212.91,9.81045325]
[1736088461722,10.20155325,212.97,212.91,9.81045325]
[1736088461919,10.20155325,212.97,212.92,2.3488]
[1736088462125,7.46155325,212.99,212.92,2.3488]
[1736088462331,2.74,212.98,212.91,7.46155325]
[1736088463028,2.3485,212.95,212.91,9.81045325]
[1736088464721,9.80995325,212.97,212.91,9.81045325]
[1736088464927,2.74,212.98,212.92,7.46155325]
[1736088465119,16.84,213.01,212.94,9.81005325]
[1736088465319,24.30155325,213.01,212.94,9.81005325]
[1736088465520,2.3481,212.99,212.94,9.81005325]
[1736088467531,1.4388,213.02,212.94,7.46155325]
[1736088467723,1.4388,213.02,212.9,2.74]
[1736088467923,14.1,213.06,212.9,2.74]
[1736088467924,16.84,213.06,212.98,7.46155325]
[1736088468129,7.46155325,213.05,212.98,7.46155325]
[1736088468932,7.46155325,213.03,212.98,7.46155325]
[1736088469124,7.46155325,213.03,212.96,7.46155325]
[1736088469326,9.80925325,213.03,212.96,7.46155325]
[1736088469937,2.3477,213.03,212.98,7.46155325]
[1736088470324,2.3477,213.03,212.97,2.3482]
[1736088470536,7.46155325,213.02,212.97,2.3482]
[1736088470835,2.3477,213.03,212.97,2.3482]
[1736088473234,2.3477,213.02,212.97,2.3482]
[1736088475644,2.74,213.06,212.97,2.3482]
[1736088475946,2.3477,213.03,212.97,2.3482]
[1736088476346,2.74,213.06,212.97,2.3482]
[1736088476552,2.3478,213.02,212.97,2.3482]
[1736088477250,2.74,213.06,212.94,11.64686185]
[1736088477849,2.3476,213.03,212.97,2.3483]
[1736088478953,2.3474,213.06,213.0,2.3479]
[1736088479347,2.3474,213.05,213.0,2.3479]
[1736088480254,2.3476,213.03,212.98,2.3481]
[1736088480760,15.86326185,213.07,212.95,5.6188]
[1736088480956,2.3475,213.04,212.95,5.6188]
[1736088481753,15.86326185,213.07,212.95,5.6188]
[1736088482356,2.3477,213.03,212.97,2.3483]
[1736088482652,15.86326185,213.07,212.95,5.6188]
[1736088482853,2.3481,212.99,212.95,2.8388]
[1736088483048,25.74686185,213.04,212.95,2.8388]
[1736088483254,25.74686185,213.04,212.89,2.78]
[1736088483255,11.64686185,213.01,212.89,2.78]
[1736088483455,2.3484,212.97,212.91,2.3489]
[1736088483958,11.64686185,213.01,212.88,14.42686185]
[1736088484156,2.3482,212.98,212.88,14.42686185]
[1736088484661,2.3483,212.97,212.92,2.3488]
[1736088486452,2.3483,212.97,212.93,2.3487]
[1736088487157,11.64686185,213.01,212.88,14.42686185]
[1736088487158,13.99476185,213.01,212.88,14.42686185]
[1736088487555,2.3479,213.01,212.88,14.42686185]
[1736088487955,2.3479,213.01,212.96,2.3484]
[1736088488356,2.78,213.02,212.91,11.64686185]
[1736088488555,2.348,213.0,212.94,2.3485]
[1736088488755,13.08326185,213.07,212.94,11.64686185]
[1736088488956,2.78,213.06,212.94,11.64686185]
[1736088489157,2.3475,213.04,212.99,2.3481]
[1736088491259,2.78,213.06,212.97,11.64686185]
[1736088491566,2.78,213.08,212.97,11.64686185]
[1736088491964,2.3472,213.07,213.01,2.3477]
[1736088493067,9.79853808,213.07,213.01,2.3477]
[1736088494564,7.45133808,213.07,213.01,2.3477]
[1736088494763,2.3473,213.06,213.01,2.3477]
[1736088496565,2.3476,213.04,213.0,7.45133808]
[1736088496765,7.45133808,213.03,212.95,2.8097]
[1736088497070,7.45133808,213.03,212.97,7.45133808]
[1736088497271,2.3478,213.02,212.97,7.45133808]
[1736088499473,2.3478,213.02,212.97,9.79963808]
[1736088501167,2.3479,213.01,212.97,9.79963808]
[1736088503068,2.348,213.0,212.96,9.79973808]
[1736088506865,2.3479,213.01,212.96,9.79973808]
[1736088510172,7.45133808,212.97,212.91,7.45133808]
[1736088510369,7.45133808,212.97,212.87,4.4934]
[1736088510672,2.3486,212.94,212.9,2.3491]
[1736088511478,2.3485,212.95,212.91,2.3489]
[1736088513276,2.3485,212.95,212.92,7.45133808]
[1736088513778,10.19133808,212.97,212.92,7.45133808]
[1736088513779,2.3484,212.96,212.92,7.45133808]
[1736088514787,1.4564,213.03,212.94,7.45133808]
[1736088514974,10.19133808,213.02,212.96,7.45133808]
[1736088515482,12.53903808,213.02,212.97,2.3483]
[1736088515879,12.53903808,213.02,212.96,7.45133808]
[1736088516679,12.53903808,213.02,212.96,9.79963808]
[1736088517279,2.74,213.02,212.98,9.79943808]
[1736088517474,2.74,213.04,212.98,7.45133808]
[1736088517686,10.19133808,213.04,212.98,7.45133808]
[1736088518086,2.3476,213.03,212.98,9.79943808]
[1736088522584,2.3474,213.05,213.0,2.3479]
[1736088523184,10.19133808,213.06,213.02,7.45133808]
[1736088523185,2.74,213.06,213.02,7.45133808]
[1736088523485,12.44812511,213.09,213.02,7.45133808]
[1736088523690,2.3472,213.08,213.02,7.45133808]
[1736088523984,5.87058703,213.08,213.02,7.45133808]
[1736088524184,3.52338703,213.08,213.03,2.3476]
[1736088524388,15.18812511,213.09,213.03,2.3476]
[1736088524585,11.66473808,213.09,213.03,2.3476]
[1736088525577,2.3471,213.08,213.03,2.3476]
[1736088525784,7.45133808,213.07,213.03,2.3476]
[1736088525987,7.45133808,213.07,213.01,2.3477]
[1736088526176,7.45133808,213.07,212.97,1.3916]
[1736088526377,7.45133808,213.05,212.99,7.45133808]
[1736088527591,9.79873808,213.05,213.0,2.3479]
[1736088530092,9.79883808,213.05,212.99,7.45133808]
[1736088530688,2.3475,213.05,212.97,1.3916]
[1736088530992,2.3475,213.05,213.0,7.45133808]
[1736088531385,2.3475,213.05,213.01,2.3478]
[1736088531892,2.3473,213.06,213.01,2.3478]
[1736088532095,4.2134,213.09,213.04,2.3475]
[1736088532298,7.45133808,213.1,213.04,7.45133808]
[1736088533087,7.45133808,213.1,213.06,2.3473]
[1736088533489,2.347,213.09,213.0,2.3479]
[1736088533692,2.347,213.09,213.02,7.45133808]
[1736088535495,2.347,213.09,213.04,2.3475]
[1736088536597,2.3465,213.14,213.08,9.79833808]
[1736088536795,7.45133808,213.13,213.06,7.45133808]
[1736088537696,2.3467,213.12,213.07,2.3472]
[1736088537898,7.45133808,213.13,213.06,7.45133808]
[1736088539601,9.79783808,213.13,213.08,2.3471]
[1736088539900,7.45133808,213.11,213.0,2.74]
[1736088540093,2.347,213.1,213.04,9.79873808]
[1736088540292,7.45133808,213.09,212.97,1.3916]
[1736088540497,2.3468,213.11,213.06,7.45133808]
[1736088540698,2.74,213.12,213.08,7.45133808]
[1736088541006,7.45133808,213.12,213.06,7.45133808]
[1736088541400,2.3465,213.13,213.07,2.3471]
[1736088541796,2.74,213.16,213.08,7.45133808]
[1736088542197,7.45133808,213.15,213.08,7.45133808]
[1736088542402,2.74,213.16,213.08,7.45133808]
[1736088542606,7.45133808,213.16,213.1,7.45133808]
[1736088543508,7.45133808,213.18,213.12,7.45133808]
[1736088544503,2.3461,213.17,213.12,9.79793808]
[1736088545404,2.3459,213.19,213.14,7.45133808]
[1736088546812,2.346,213.18,213.14,7.45133808]
[1736088548002,7.45133808,213.2,213.14,7.45133808]
[1736088548211,2.74,213.24,213.18,7.45133808]
[1736088548709,7.45133808,213.23,213.18,7.45133808]
[1736088548906,160.96411585,213.28,213.18,7.45133808]
[1736088549210,194.66773902,213.29,213.18,7.45133808]
[1736088549211,7.45133808,213.25,213.18,7.45133808]
[1736088550207,7.45133808,213.25,213.2,2.3457]
[1736088550408,2.74,213.27,213.18,7.45133808]
[1736088550708,7.45133808,213.25,213.18,7.45133808]
[1736088551019,7.45133808,213.25,213.19,2.3458]
[1736088551309,7.45133808,213.25,213.2,7.45133808]
[1736088551506,7.45133808,213.27,213.2,2.3457]
[1736088551813,7.45133808,213.28,213.21,7.45133808]
[1736088552010,4.2508,213.29,213.21,7.45133808]
[1736088552213,7.45133808,213.28,213.21,7.45133808]
[1736088552414,1.5108,213.29,213.21,9.79693808]
[1736088552713,10.19133808,213.3,213.23,7.45133808]
[1736088553736,14.1,213.35,213.25,7.45133808]
[1736088554012,8.21046877,213.34,213.19,2.74]
[1736088554209,0.75913069,213.33,213.27,7.45133808]
[1736088554509,7.45133808,213.32,213.25,7.45133808]
[1736088555213,2.74,213.35,213.25,7.45133808]
[1736088555414,0.75909853,213.34,213.23,7.45133808]
[1736088555613,7.45133808,213.31,213.23,7.45133808]
[1736088556009,16.84,213.35,213.23,7.45133808]
[1736088556010,7.45133808,213.3,213.23,7.45133808]
[1736088557216,7.45133808,213.3,213.25,7.45133808]
[1736088557717,7.45133808,213.3,213.23,9.79673808]
[1736088558015,7.45133808,213.3,213.15,4.3563]
[1736088558210,7.45133808,213.3,213.2,7.45133808]
[1736088558211,7.45133808,213.26,213.2,7.45133808]
[1736088558515,7.45133808,213.24,213.18,7.45133808]
[1736088558816,7.45133808,213.24,213.17,2.3461]
[1736088559018,7.45133808,213.24,213.19,7.45133808]
[1736088559918,7.45133808,213.24,213.17,9.79743808]
[1736088560310,7.45133808,213.24,213.18,2.346]
[1736088560516,7.45133808,213.24,213.17,7.45133808]
[1736088560910,7.45133808,213.22,213.15,7.0963]
[1736088561116,7.45133808,213.2,213.15,2.9758]
[1736088561315,7.45133808,213.2,213.14,7.45133808]
[1736088561718,7.45133808,213.2,213.11,2.74]
[1736088562017,2.74,213.24,213.12,7.45133808]
[1736088562216,7.45133808,213.2,213.14,7.45133808]
[1736088562421,2.74,213.24,213.14,7.45133808]
[1736088562727,7.45133808,213.19,213.12,7.45133808]
[1736088563120,10.19133808,213.19,213.12,7.45133808]
[1736088563422,7.45133808,213.17,213.1,7.45133808]
[1736088564417,7.45133808,213.17,213.1,9.79813808]
[1736088566523,7.45133808,213.16,213.1,9.79813808]
[1736088568820,2.74,213.19,213.14,7.45133808]
[1736088568821,7.45133808,213.19,213.14,7.45133808]
[1736088569024,2.74,213.23,213.16,7.45133808]
[1736088569224,10.19133808,213.23,213.16,7.45133808]
[1736088569419,7.45133808,213.23,213.16,7.45133808]
[1736088569820,7.45133808,213.23,213.17,2.3461]
[1736088570018,7.45133808,213.23,213.16,7.45133808]
[1736088570826,7.45133808,213.17,213.12,7.45133808]
[1736088572232,7.45133808,213.17,213.12,9.79793808]
[1736088572528,7.45133808,213.19,213.12,9.79793808]
[1736088574429,7.45133808,213.19,213.11,2.74]
[1736088574625,7.45133808,213.15,213.08,7.45133808]
[1736088575128,7.45133808,213.15,213.08,9.79833808]
[1736088575332,7.45133808,213.13,213.07,2.8886]
[1736088576231,7.45133808,213.11,213.06,7.45133808]
[1736088576628,7.45133808,213.11,213.04,7.45133808]
[1736088577028,25.73858958,213.14,213.01,14.37858958]
[1736088577228,25.73858958,213.14,213.04,2.3474]
[1736088578231,25.73858958,213.14,213.01,14.37858958]
[1736088578431,25.73858958,213.14,213.05,2.3474]
[1736088578823,2.74,213.13,213.05,2.3474]
[1736088580043,11.63858958,213.14,213.09,2.3469]
[1736088580338,2.74,213.18,213.07,11.63858958]
[1736088580541,2.74,213.18,213.08,1.4894]
[1736088581532,2.74,213.18,213.12,2.3465]
[1736088582324,2.74,213.18,213.11,2.3467]
[1736088582729,2.74,213.18,213.08,1.4894]
[1736088582935,2.74,213.18,213.09,1.48]
[1736088583137,4.2514,213.21,213.1,11.63858958]
[1736088583334,4.2514,213.21,213.11,2.74]
[1736088584529,4.2514,213.21,213.14,2.3463]
[1736088585235,15.88998958,213.21,213.12,2.3466]
[1736088586740,13.14998958,213.21,213.11,2.3467]
[1736088586935,15.88998958,213.21,213.11,2.3467]
[1736088587144,15.88998958,213.21,213.09,4.22]
[1736088587931,29.98998958,213.21,213.09,4.22]
[1736088589384,29.98998958,213.21,213.1,11.63858958]
[1736088589385,15.88998958,213.21,213.1,11.63858958]
[1736088590538,15.88998958,213.21,213.14,2.3463]
[1736088592944,13.14998958,213.21,213.14,2.3463]
[1736088596139,2.74,213.22,213.1,14.37858958]
[1736088596340,2.74,213.25,213.13,11.63858958]
[1736088597145,7.44017969,213.21,213.14,7.44017969]
[1736088597744,7.44017969,213.21,213.1,2.74]
[1736088598048,7.44017969,213.19,213.12,7.44017969]
[1736088598349,7.44017969,213.19,213.14,2.3464]
[1736088598753,7.44017969,213.21,213.14,7.44017969]
[1736088598949,7.44017969,213.21,213.15,2.3463]
[1736088600641,7.44017969,213.21,213.16,2.3462]
[1736088600844,7.44017969,213.23,213.16,9.78637969]
[1736088602052,7.44017969,213.21,213.16,2.3462]
[1736088603951,2.74,213.26,213.16,7.44017969]
[1736088604149,7.44017969,213.24,213.18,7.44017969]
[1736088604549,7.44017969,213.26,213.18,7.44017969]
[1736088605451,1.4515,213.27,213.18,7.44017969]
[1736088605753,7.44017969,213.27,213.22,2.3455]
[1736088608949,7.44017969,213.29,213.23,2.3454]
[1736088609648,7.44017969,213.29,213.25,2.3452]
[1736088610060,7.44017969,213.29,213.18,1.3923]
[1736088610251,7.44017969,213.29,213.22,2.3455]
[1736088610855,1.5102,213.33,213.25,7.44017969]
[1736088611052,11.84591173,213.36,213.27,7.44017969]
[1736088611249,7.44017969,213.34,213.27,7.44017969]
[1736088611554,2.3444,213.33,213.26,2.345]
[1736088611754,7.44017969,213.32,213.25,7.44017969]
[1736088612154,2.74,213.37,213.25,7.44017969]
[1736088612349,0.75893962,213.36,213.25,7.44017969]
[1736088612554,9.78487969,213.31,213.25,2.3452]
[1736088613257,2.74,213.37,213.2,7.37263662]
[1736088613258,2.3451,213.26,213.2,9.71833662]
[1736088613460,2.3451,213.26,213.2,17.55281631]
[1736088613657,2.3451,213.26,213.2,14.81281631]
[1736088614556,2.3451,213.26,213.21,2.3456]
[1736088615061,9.78547969,213.25,213.2,7.37263662]
[1736088615954,4.3403,213.31,213.2,7.37263662]
[1736088615955,7.44017969,213.23,213.2,7.37263662]
[1736088617561,9.78557969,213.23,213.2,7.37263662]
[1736088617749,7.44017969,213.21,213.12,7.44017969]
[1736088617955,7.44017969,213.18,213.12,7.44017969]
[1736088618151,14.1,213.26,213.12,7.44017969]
[1736088618355,7.44017969,213.2,213.15,2.3463]
[1736088618959,7.44017969,213.2,213.14,2.3464]
[1736088619265,7.44017969,213.18,213.14,2.3464]
[1736088619464,7.44017969,213.2,213.13,7.44017969]
[1736088619664,7.44017969,213.21,213.13,7.44017969]
[1736088620163,7.44017969,213.21,213.16,2.3461]
[1736088620753,2.3459,213.19,213.14,2.3464]
[1736088620957,9.78607969,213.19,213.14,2.3464]
[1736088622065,7.44017969,213.19,213.15,2.3463]
[1736088622660,5.0856,213.22,213.16,2.3462]
[1736088622865,7.44017969,213.21,213.16,2.3462]
[1736088623461,7.44017969,213.21,213.13,7.44017969]
[1736088623766,7.44017969,213.19,213.13,7.44017969]
[1736088624566,7.44017969,213.19,213.15,2.3463]
[1736088625867,2.346,213.18,213.13,9.78667969]
[1736088626762,2.346,213.18,213.13,2.3465]
[1736088627065,7.44017969,213.18,213.14,2.3463]
[1736088627969,7.44017969,213.18,213.11,7.44017969]
[1736088628164,2.3461,213.17,213.12,2.3465]
[1736088628467,7.44017969,213.18,213.11,7.44017969]
[1736088628768,9.78617969,213.18,213.13,2.3464]
[1736088629268,2.3461,213.17,213.12,2.3466]
[1736088630065,2.3461,213.17,213.13,2.3465]
[1736088631363,7.44017969,213.18,213.13,2.3465]
[1736088631568,9.78617969,213.18,213.13,2.3465]
[1736088631774,7.44017969,213.18,213.11,7.44017969]
[1736088631975,7.44017969,213.18,213.13,2.3465]
[1736088632170,7.44017969,213.2,213.13,7.44017969]
[1736088632371,7.44017969,213.2,213.16,2.3462]
[1736088632572,2.74,213.23,213.16,2.3462]
[1736088632768,24.28017969,213.23,213.16,2.3462]
[1736088632966,2.3456,213.22,213.17,2.346]
[1736088633478,2.3456,213.22,213.17,9.78617969]
[1736088633670,2.3453,213.25,213.19,2.3459]
[1736088633875,10.18017969,213.24,213.19,2.3459]
[1736088634271,2.3453,213.25,213.2,2.3457]
[1736088634474,1.5288,213.26,213.21,7.44017969]
[1736088634897,1.5288,213.26,213.21,9.78567969]
[1736088636572,1.5288,213.26,213.21,7.44017969]
[1736088636870,7.44017969,213.28,213.23,2.3454]
[1736088637870,2.74,213.33,213.25,2.3452]
[1736088638072,7.44017969,213.31,213.25,2.3452]
[1736088639066,7.44017969,213.31,213.26,2.3451]
[1736088639273,7.44017969,213.29,213.23,7.44017969]
[1736088640076,7.44017969,213.27,213.15,4.3709]
[1736088640375,7.44017969,213.27,213.21,7.44017969]
[1736088642376,7.44017969,213.27,213.22,2.3454]
[1736088643579,7.44017969,213.27,213.23,2.3453]
[1736088643969,2.3449,213.28,213.23,2.3453]
[1736088644201,7.44017969,213.29,213.21,7.44017969]
[1736088644376,5.0848,213.3,213.23,7.44017969]
[1736088644576,10.18017969,213.3,213.23,7.44017969]
[1736088645372,10.18017969,213.3,213.25,2.3452]
[1736088645879,7.44017969,213.31,213.28,2.3449]
[1736088646681,5.0843,213.34,213.28,2.3449]
[1736088646879,7.44017969,213.33,213.28,2.3449]
[1736088647782,7.44017969,213.31,213.28,2.3449]
[1736088648481,9.78457969,213.33,213.28,2.3449]
[1736088648681,7.44017969,213.33,213.29,2.3448]
[1736088649386,7.44017969,213.33,213.26,7.44017969]
[1736088649583,2.74,213.36,213.21,2.74]
[1736088649584,5.084,213.36,213.31,2.3445]
[1736088649779,7.44017969,213.35,213.31,2.3445]
[1736088650184,2.74,213.37,213.3,7.44017969]
[1736088650384,7.44017969,213.33,213.26,2.74]
[1736088650585,7.44017969,213.33,213.27,7.44017969]
[1736088651705,7.44017969,213.33,213.29,2.3447]
[1736088652086,2.74,213.37,213.27,7.44017969]
[1736088652285,7.44017969,213.35,213.27,7.44017969]
[1736088652686,9.78427969,213.35,213.31,2.3445]
[1736088652896,9.78427969,213.35,213.27,7.44017969]
[1736088653194,2.3441,213.35,213.27,7.44017969]
[1736088653383,2.74,213.37,213.31,2.3444]
[1736088653384,7.44017969,213.36,213.31,2.3444]
[1736088654187,7.44017969,213.36,213.32,2.3444]
[1736088656696,9.78417969,213.36,213.31,2.3445]
[1736088657695,7.44017969,213.34,213.27,2.9483]
[1736088657892,7.44017969,213.34,213.29,2.3447]
[1736088658292,9.78447969,213.34,213.29,2.3447]
[1736088658892,2.3443,213.34,213.29,2.3447]
[1736088659200,9.78447969,213.34,213.29,2.3447]
[1736088660298,9.78447969,213.34,213.3,2.3446]
[1736088660299,7.44017969,213.34,213.3,2.3446]
[1736088661500,9.78437969,213.34,213.29,2.3447]
[1736088661797,7.44017969,213.3,213.2,7.52913427]
[1736088662000,16.84,213.37,213.23,2.3453]
[1736088662204,1.3792,213.4,213.22,7.44017969]
[1736088662205,7.44017969,213.28,213.22,7.44017969]
[1736088662797,7.44017969,213.28,213.23,2.3454]
[1736088662798,9.78507969,213.28,213.23,2.3454]
[1736088663599,9.78507969,213.28,213.22,7.44017969]
[1736088663600,2.3449,213.28,213.24,2.3453]
[1736088664003,2.3449,213.29,213.24,7.44017969]
[1736088664305,10.18017969,213.32,213.26,9.78517969]
[1736088664506,7.44017969,213.32,213.26,9.78517969]